[Event "Lliga Catalana DH 2023"]
[Site "Catalonia"]
[Date "2023.01.21"]
[Round "1.6"]
[White "Fernandez Madrid, Carlos"]
[Black "Hernando Rodrigo, Julio Antonio"]
[Result "0-1"]
[ECO "A15"]
[WhiteElo "2105"]
[BlackElo "2240"]
[Annotator "TA"]
[PlyCount "114"]
[EventDate "2023.01.24"]
[EventType "team-tourn"]
[EventCountry "ESP"]
[SourceTitle "playchess.com"]
[Source "ChessBase"]
[SourceQuality "1"]
[TimeControl "40/5400+30:1800+30"]

{[%evp 12,114,-2,0,15,14,20,19,21,18,26,23,63,23,34,25,15,12,30,30,47,43,48,39,43,41,34,37,44,41,64,78,67,0,34,0,0,0,21,8,4,5,6,13,28,11,20,6,83,6,183,41,175,35,87,80,105,101,363,0,115,130,581,321,530,532,685,0,0,0,0,-95,-97,-148,-136,-205,-205,-204,0,-956,-987,-938,-934,-1448,-1455,-1216,-1322,-1295,-1275,-1045,-737,-581,0,-982,0,-833,-732,-699,-659,-625,-620,-29975,-492,-29940,-5854]} 1. c4 Nf6 2. g3 g6 3. b3 Bg7 4. Bb2 O-O 5. Bg2 d6 6. Nf3 e5 7. d3 Nc6 {A15: English Opening: 1...Nf6.} 8. Nc3 Bg4 9. h3 Bd7 {The position is equal.} 10. O-O Rb8 11. e3 {[#]} e4 $146 ({Predecessor:} 11... Qc8 12. Kh2 h6 13. Rc1 g5 14. Ne1 Ne7 15. Ne2 Ng6 16. d4 exd4 17. Nxd4 g4 18. h4 Bf5 {½-½ Klein,J (2040)-Daubenfeld,G (1625) LUX-chABC Dudelange 1997 (1.16)}) 12. dxe4 (12. Ne1 $5 {[%cal Rd3e4]}) 12... Nxe4 13. Na4 Bxb2 14. Nxb2 Re8 15. Nd3 Ne7 16. Nd4 c5 17. Nb5 a6 18. Bxe4 axb5 19. Nf4 bxc4 20. bxc4 Nf5 21. Qd3 b5 22. Bd5 (22. Rfb1 $14) 22... Qf6 (22... g5 $5 {[%cal Rg5f4]} 23. Nh5 Ng7 24. Bxf7+ Kxf7 25. Qxh7 Rg8 $11) 23. Rad1 bxc4 24. Bxc4 Rb2 25. Rd2 Rxd2 26. Qxd2 Bc6 27. Bd5 Bxd5 (27... Ne7 $5 {[%cal Re7d5]} 28. Bxc6 Nxc6 $11) 28. Nxd5 Qg5 {[%cal Of5d4]} 29. Rd1 {[%cal Oe3e4]} Re5 {Prevents e4.} (29... Nd4 $1 $11 30. exd4 Qxd5) 30. Kh2 (30. Qe1 $16 {Threatens to win with f4.} Re6 31. Kh2) 30... h5 $2 (30... Nd4 $1 $11 {and Black stays safe.} 31. exd4 Rxd5) 31. Nf4 (31. Qb2 $1 $18) 31... c4 (31... Re4 $14) 32. Rb1 ({White has to play} 32. Nd5 $18) 32... Qe7 (32... Rc5 $14) 33. Rb8+ Kg7 34. Qb2 Qc7 $2 {[%mdl 8192]} (34... Qd7 $16) 35. Ne2 $2 (35. Ne6+ $1 $18 fxe6 36. Rb7 Qxb7 37. Qxb7+ Kf6 38. Qc8) 35... h4 (35... Qc6 $11) 36. g4 $16 Ne7 {[%mdl 8192]} (36... Nxe3 $16 {is a better chance.} 37. fxe3 Qa7) 37. Rb7 c3 $2 (37... Qc5 38. Rxe7 c3) 38. Nxc3 $18 (38. Qb3 Qc6 39. Nxc3 Qf3 $16) 38... Qc6 {[#]} 39. Rxe7 $2 Rxe7 {[%mdl 4096] Endgame KQR-KQN} 40. Nd5+ Re5 41. e4 {[#]} (41. Nb4 $11 {keeps the balance.} Qe4 42. f4 {[%mdl 64] Pin}) 41... g5 $1 $17 42. f3 ({Better is} 42. Qd2) 42... Qa6 43. Ne3 {Against Qf1} (43. Kg2 $17) 43... Kg6 {And now ...Qd3 would win.} 44. Nf5 f6 $2 ({Black should try} 44... Qa7 $19 {...f6 is the strong threat.} 45. a3 f6 46. Nxd6 Rc5) 45. Ne3 $2 {[%mdl 8192]} (45. Qb8 $11 Qxa2+ 46. Kg1) 45... Ra5 $19 46. Qb3 Rxa2+ 47. Ng2 Kg7 {( -> ...Qe2)} (47... Qe2 48. Qg8+ Kh6 49. Qh8+ Kg6 50. Qg8+ Kh6 51. Qh8+ Kg6 52. Qg8+ $11) 48. Qe6 Qa7 {White must now prevent ...Ra3.} 49. Qxd6 Ra1 {[%csl Ga1][%cal Ra7g1]} 50. Ne3 Qa2+ (50... Qxe3 51. Qe7+ Kg8 52. Qe8+ Kh7 53. Qf7+ Kh8 54. Qxf6+ Kg8 55. Qd8+ Kg7 56. Qe7+ Kh8 57. Qf6+ Kh7 58. Qf7+ Kh8 59. Qf6+ $11) 51. Ng2 Qa7 (51... Rf1 $142 52. e5 Rxf3 53. Qe7+ Qf7 54. exf6+ Rxf6) 52. Ne3 $1 {[%cal Oe4e5][%mdl 64] Deflection} Ra2+ (52... Qxe3 53. Qe7+ Kg8 54. Qe8+ Kh7 55. Qf7+ Kh8 56. Qe8+ (56. Qxf6+ Kh7 $11) 56... Kh7 57. Qf7+ Kh8 58. Qe8+ (58. Qxf6+ Kh7 $11) 58... Kh7 $11) 53. Ng2 Re2 54. Qd8 Rf2 (54... Qf2 55. Qe7+ Kh6 56. Qf8+ (56. Qxf6+ Kh7 $11) 56... Kh7 57. Qf7+ Kh8 58. Qe8+ Kg7 59. Qe7+ Kh8 60. Qe8+ Kg7 61. Qe7+ $11) 55. e5 Rxf3 {Hoping for ...Qf7. Active counter play!} ({And not} 55... fxe5 56. Qxg5+ Kf7 57. Qf5+ (57. Qxe5 Rf1 $11) (57. Qxh4 Qd4 $11) 57... Kg8 58. Qg6+ (58. Qxe5 Rxf3 59. Qd5+ Qf7 $11) 58... Qg7 59. Qe8+ Qf8 60. Qg6+ Qg7 61. Qe8+ Qf8 62. Qg6+ Qg7 $11) 56. e6 {Against Qf7} Rf1 (56... Qc5 $142 57. Qd7+ Kh6 58. Qd2 Qe5+ {[%mdl 64] Deflection} 59. Kg1 Qc5+ 60. Kh2 Qe5+ {[%mdl 64] Deflection} 61. Kg1 Rxh3 62. e7 Qxe7 63. Qf2 Rg3 64. Kh2 Qe5 65. Qf5 Qd6 66. Qf2 Rf3+ {[%mdl 64] Discovered Attack} 67. Kg1 Rxf2 68. Kxf2 Qg3+ {[%mdl 64] Deflection, Double Attack} 69. Ke2 Qxg2+ 70. Ke3 h3 71. Kd4 h2 72. Kc4 h1=Q 73. Kc5 Qc6+ 74. Kb4 Qb1+ 75. Ka5 Qe1#) 57. Ne3 (57. Qd7+ $19 Qxd7 {[%mdl 64] Remove Defender} 58. exd7) 57... Qa2+ {Weighted Error Value: White=0.81/Black=0.82} ({Inferior is} 57... Qxe3 58. Qe7+ Kh8 59. Qf8+ Kh7 60. Qf7+ Kh8 61. Qe8+ Kg7 62. Qf7+ Kh8 63. Qh5+ Kg8 64. Qg6+ Kh8 65. Qh5+ (65. Qh6+ Kg8 $11) 65... Kg8 66. Qg6+ Kh8 67. Qh6+ Kg8 68. Qg6+ $11) 0-1

[Event "Lliga Catalana DH 2023"]
[Site "Catalonia"]
[Date "2023.01.21"]
[Round "1.6"]
[White "Garcia Acosta, Roger"]
[Black "Fernandez Lozano, Francesc"]
[Result "0-1"]
[ECO "B15"]
[WhiteElo "2072"]
[BlackElo "2036"]
[Annotator "TA"]
[PlyCount "56"]
[EventDate "2023.01.24"]
[EventType "team-tourn"]
[EventCountry "ESP"]
[SourceTitle "playchess.com"]
[Source "ChessBase"]
[SourceQuality "1"]
[TimeControl "40/5400+30:1800+30"]

{[%evp 17,56,12,28,12,27,0,0,0,0,0,6,-26,-15,-18,-20,-26,-13,-33,0,0,9,-216,-221,-237,-220,-224,-221,-377,-390,-678,-653,-776,-757,-761,-755,-797,-742,-29990,-1185,-29986,-29986]} 1. e4 {[%emt 0:00:49]} g6 {[%emt 0:00:05]} 2. d4 {[%emt 0:00:40]} Bg7 {[%emt 0:00:06]} 3. Nf3 {[%emt 0:01:44]} c6 {[%emt 0:00:26]} 4. Nc3 {[%emt 0:02:00]} d5 {[%emt 0:00:05]} 5. h3 {[%emt 0:04:48]} dxe4 {[%emt 0:00:09]} 6. Nxe4 {[%emt 0:00:18]} Nf6 {[%emt 0:00:07]} 7. Nxf6+ {[%emt 0:05:16]} exf6 {[%emt 0:00:07]} 8. Bc4 {[%emt 0:01:31]} O-O {[%emt 0:00:25]} 9. O-O {[%emt 0:00:43]} Nd7 $1 {[%emt 0:01:48] 9...Nd7 scores better than 9...a5.} 10. Bf4 {[%emt 0:08:43] B15: Caro-Kann: 3 Nc3: 3...g6 and 3...dxe4 4 Nxe4 Nf6 5 Nxf6+ exf6.} b5 {[%emt 0:01:31] [#]} 11. Bd3 $146 {[%emt 0:06:41]} ({Predecessor:} 11. Bb3 Nb6 12. a4 bxa4 13. Bxa4 Nxa4 14. Rxa4 f5 15. Re1 Qb6 16. Bd6 Rd8 17. Rb4 Qa6 {1-0 Yuan,Q (2373)-Joie,S (2373) Titled Tuesday intern op 28th Jun Early blitz 2022 (3)}) 11... Nb6 {[%emt 0:00:57]} 12. c3 {[%emt 0:01:23] The position is equal.} a5 {[%emt 0:01:10][%cal Ba7a5,Ba5a4,Ba4b3][%mdl 32]} 13. Re1 {[%emt 0:05:58]} Be6 {[%emt 0:01:28]} 14. Nd2 {[%emt 0:12:23]} a4 {[%emt 0:01:56]} 15. Ne4 {[%emt 0:04:15]} Bd5 {[%emt 0:10:30]} 16. Nc5 {[%emt 0:01:43]} Re8 {[%emt 0:06:02]} 17. b3 {[%emt 0:12:00]} Bf8 {[%emt 0:06:22]} 18. Qc2 {[%emt 0:04:08]} Ra7 {[%emt 0:07:07]} 19. c4 $2 {[%emt 0:06:33] [#] This costs White the game.} (19. Rxe8 $11 Qxe8 20. Rb1) 19... axb3 $1 $19 {[%emt 0:05:04]} 20. axb3 {[%emt 0:03:47][%cal Oc4d5] cxd5! is the strong threat.} Rxa1 {[%emt 0:00:27]} 21. Rxa1 {[%emt 0:00:43]} Bxg2 {[%emt 0:09:14][%mdl 64] Discovered Attack} 22. d5 {[%emt 0:14:16]} (22. Kxg2 {was called for.} Qxd4 23. Bc7 (23. cxb5 $2 Nd5 $19)) 22... Bxh3 {[%emt 0:06:54]} (22... Bxc5 $2 {is the wrong capture.} 23. Kxg2 bxc4 24. bxc4 $19) 23. Nb7 {[%emt 0:00:55] [#]} (23. d6 f5 24. Bf1 Bxd6 25. Bxd6 Qxd6 26. Bxh3 Qxc5 27. Bg2) 23... Qc8 {[%emt 0:00:50]} 24. cxb5 {[%emt 0:00:36]} Nxd5 {[%emt 0:02:18]} 25. Bg3 {[%emt 0:00:32]} Nb4 {[%emt 0:01:14]} 26. Qc3 {[%emt 0:00:33]} Nxd3 {[%emt 0:00:45]} 27. bxc6 {[%emt 0:00:18]} Nb4 {[%emt 0:02:27]} (27... Qf5 $142 28. Kh2 Qf3 29. Rg1 Bf5 30. Qd4 Re2 31. Rg2 Ne1 {[%mdl 64] Discovered Attack} 32. Rg1 Qg2+ {[%mdl 64] Back Rank, Clearance} 33. Rxg2 Nf3+ 34. Kh1 Re1+ 35. Rg1 Rxg1#) 28. Rc1 {[%emt 0:00:37]} Na2 {[%emt 0:02:33][%csl LRc1,LRc3] Weighted Error Value: White=1.17/Black=0.32} 0-1

[Event "Lliga Catalana DH 2023"]
[Site "Catalonia"]
[Date "2023.01.21"]
[Round "1.7"]
[White "Moreno Sanchis, Jordi-Alex"]
[Black "Fernandez Serrano, Pau"]
[Result "1/2-1/2"]
[ECO "B06"]
[WhiteElo "2260"]
[BlackElo "2075"]
[Annotator "TA"]
[PlyCount "41"]
[EventDate "2023.01.24"]
[EventType "team-tourn"]
[EventCountry "ESP"]
[SourceTitle "playchess.com"]
[Source "ChessBase"]
[SourceQuality "1"]
[TimeControl "40/5400+30:1800+30"]

{[%evp 11,41,41,51,20,20,3,34,23,22,15,25,-40,-49,-55,-26,-75,0,0,29,-33,0,-30,-18,-18,-19,-29,-17,-12,-22,-30,-13,-130]} 1. Nf3 g6 2. d4 Bg7 3. e4 d6 4. Nc3 a6 5. a4 b6 6. Bc4 e6 7. h4 {B06: Modern Defence.} h6 $1 8. Bf4 Ne7 9. Qe2 {White is slightly better.} Bb7 10. Rd1 Nd7 {[#]} 11. g4 $146 ({White should play} 11. O-O $11) ({Predecessor:} 11. O-O g5 12. hxg5 Ng6 13. Bc1 hxg5 14. Bxg5 Bf6 15. Qe3 Rh5 16. Bf4 Qe7 17. g4 {1-0 Sodoma,J (2312)-Novotny,J (2169) Pardubice Czech op-E 33rd 2022 (5.2)}) 11... Nf6 $15 12. g5 Nh5 (12... hxg5 {feels hotter.} 13. Bxg5 Nxe4 14. Nxe4 Bxe4 15. Qxe4 d5) 13. Bc1 (13. gxh6 $11 {deserves consideration.} Bxd4 14. Bd2) 13... Ng8 (13... hxg5 $17 {...g4 would be deadly.} 14. Bxg5 (14. hxg5 d5 $15) 14... Qd7) 14. Rg1 $11 Qe7 15. Nh2 (15. Be3 $11) 15... hxg5 16. hxg5 Qd7 17. Ng4 Ne7 18. e5 d5 19. Bd3 c5 20. dxc5 bxc5 21. Be4 {Weighted Error Value: White=0.22 (precise) /Black=0.15 (very precise)} 1/2-1/2

[Event "Lliga Catalana DH 2023"]
[Site "Catalonia"]
[Date "2023.01.21"]
[Round "1.7"]
[White "Travesset Ribera, Joaquin"]
[Black "Valencia Jimenez, Jose"]
[Result "1-0"]
[ECO "D02"]
[WhiteElo "2110"]
[BlackElo "2023"]
[Annotator "TA"]
[PlyCount "27"]
[EventDate "2023.01.24"]
[EventType "team-tourn"]
[EventCountry "ESP"]
[SourceTitle "playchess.com"]
[Source "ChessBase"]
[SourceQuality "1"]
[TimeControl "40/5400+30:1800+30"]

{[%evp 9,27,11,100,85,127,123,116,130,128,123,249,242,481,468,461,463,495,477,781,789]} 1. d4 {[%emt 0:00:03]} c5 {[%emt 0:01:12]} 2. c3 {[%emt 0:05:22]} d5 {[%emt 0:01:08]} 3. Nf3 {[%emt 0:00:16]} Bf5 {[%emt 0:00:53]} 4. Qb3 {[%emt 0:01:17]} Bc8 {[%emt 0:21:01] [#]} 5. dxc5 $146 {[%emt 0:10:53]} ({Predecessor:} 5. Bf4 c4 6. Qc2 e6 7. Nbd2 Bd6 8. Bg5 f6 9. Bh4 Ne7 10. e4 Ng6 11. Bg3 {1-0 Rivera,L (1600)-Pertuz Mercado,M (1889) Ocana op 1st 2015 (7)}) 5... Nc6 {[%emt 0:01:02] [#]} (5... e6 $11) 6. e4 $1 $16 {[%emt 0:06:39] White is more active. D02: 1 d4 d5 2 Nf3 sidelines, including 2...Nf6 3 g3 and 2...Nf6 3 Bf4.} e6 {[%emt 0:04:16] [#]} (6... dxe4 7. Ng5) 7. exd5 {[%emt 0:01:20]} exd5 {[%emt 0:00:02] [#]} 8. Be3 {[%emt 0:00:27] White is better.} Nf6 {[%emt 0:00:22]} 9. Bb5 {[%emt 0:03:49]} Ne4 {[%emt 0:02:01]} (9... Be7 $16) 10. Ne5 $18 {[%emt 0:16:00]} Bxc5 $2 {[%emt 0:07:13]} (10... Nxc5 {might work better.} 11. Nxc6 (11. Bxc6+ bxc6 12. Bxc5 Bxc5 $15) 11... bxc6 12. Bxc6+ Bd7 13. Qxd5 Rc8) 11. Nxc6 {[%emt 0:03:15] White is clearly winning.} bxc6 {[%emt 0:00:39]} 12. Bxc6+ {[%emt 0:00:15]} Kf8 {[%emt 0:00:05][%cal Oc5e3]} 13. Qxd5 {[%emt 0:01:19][%cal Rd5d8][%mdl 64] Double Attack} Qe7 {[%emt 0:05:21]} (13... Qxd5 $142 14. Bxd5 Bxe3) 14. Qxe4 {[%emt 0:01:16] Black got outplayed after the opening.   Weighted Error Value: White=0.03 (flawless) /Black=0.90} 1-0

[Event "Lliga Catalana DH 2023"]
[Site "Catalonia"]
[Date "2023.01.21"]
[Round "1.8"]
[White "Barcelo Sola, David"]
[Black "Mayo Casademont, Marti"]
[Result "0-1"]
[ECO "C68"]
[WhiteElo "1985"]
[BlackElo "2270"]
[Annotator "TA"]
[PlyCount "101"]
[EventDate "2023.01.24"]
[EventType "team-tourn"]
[EventCountry "ESP"]
[SourceTitle "playchess.com"]
[Source "ChessBase"]
[SourceQuality "1"]
[TimeControl "40/5400+30:1800+30"]

{[%evp 17,101,-14,-17,-66,-68,-64,-71,-120,-121,-113,-6,-129,-129,-155,-141,-164,-137,-193,-206,-194,-191,-185,-158,-218,-185,-226,-226,-275,-278,-281,-280,-277,-270,-322,-310,-350,-315,-310,-246,-256,-237,-297,-312,-303,-311,-301,-287,-340,-297,-305,-301,-306,-289,-425,-407,-409,-364,-556,-556,-531,-528,-739,-723,-727,-692,-700,-658,-1110,-1147,-2033,-1519,-29970,-29945,-6249,-3885,-5147,-2803,-29974,-29976,-29957,-6074,-2247,-887,-912,-886,-896]} 1. e4 e5 2. Nf3 Nc6 3. Bb5 a6 4. Bxc6 dxc6 5. d4 exd4 6. Qxd4 Qxd4 7. Nxd4 Bd7 8. Nc3 {now supersedes 8.Be3.} O-O-O {[%cal Ba8d8,Bd8e8,Be8e4][%mdl 32]} 9. Be3 Bb4 10. O-O {C68: Ruy Lopez: Exchange Variation, sidelines.} (10. Nde2 $11 {was preferrable.}) 10... Bxc3 $15 11. bxc3 Re8 {[#]} 12. Nf5 $146 (12. f3 $142) ({Predecessor:} 12. f3 c5 13. Nb3 b6 14. Nd2 f5 15. Rfe1 Ne7 16. exf5 Bxf5 17. Ne4 Bxe4 18. fxe4 {0-1 Blume,B-Schulz,G Liga 2017 20194-K4-G1}) 12... Rxe4 13. Bd4 f6 ({But not} 13... Bxf5 14. Bxg7 Ne7 15. Bxh8 $16) ({Black should try} 13... Nf6 $17 14. f3 Rf4) 14. Ng3 (14. Nxg7 $11 {remains equal.} c5 15. Bxc5) 14... Re8 $17 {White is on the road to losing.} 15. Rfe1 Ne7 16. Re2 Nf5 17. Rd2 (17. Rae1 $17 Rxe2 18. Rxe2) 17... Nxg3 $19 18. hxg3 b6 19. Be3 Bf5 20. Kf1 (20. Re1 $17) 20... Re4 21. a4 a5 22. Ra2 c5 23. Rd1 Rhe8 24. Re1 Bd7 25. Rea1 h5 26. Ke2 Be6 27. Ra3 Kb7 28. Rh1 Bd7 29. Rh4 Rxh4 30. gxh4 {[%mdl 4096] Endgame KRB-KRB} Re4 {[%csl LRa4,LRh4]} 31. g3 Bxa4 32. f3 Bb5+ 33. Kf2 Re8 34. Ra1 Kc6 35. Rg1 (35. Re1 $142) 35... a4 {[%cal Ba5a4,Ba4a3,Ba3a2][%mdl 32]} 36. g4 g6 37. f4 (37. Ra1 $142) 37... hxg4 38. Rxg4 a3 {Strongly threatening ...a2.} 39. Rg1 a2 40. Kf3 Rh8 41. Kg3 Kd5 {Threatens to win with ...Ke4.} 42. Rh1 Ke4 43. Bd2 Rd8 44. Re1+ Kf5 45. Be3 {[#]} Be2 $1 {[%mdl 576] ( -> ...Bd1). Deflection, Promotion} 46. Ra1 Bc4 47. Rg1 Ra8 48. Ra1 Ra3 (48... Ra5 $142 49. Kf3 Rb5 50. Kg2 Rb1 51. Rxa2 Bxa2 52. Kg3 Bc4 53. Kg2 Rb2 54. Bg1 Kxf4 55. Kf2 Rxc2+ 56. Ke1 Re2+ 57. Kd1 Ke4 58. Bh2 Rxh2 59. Ke1 Ke3 60. Kd1 Kd3 61. Ke1 Kxc3 62. h5 gxh5 63. Kd1 Rh1#) 49. Bd2 {Black is clearly winning.} Be2 (49... Ra5 $142 50. Be3 Rb5 51. Rxa2 Bxa2) 50. Kf2 {[#]} Bd1 $1 {[%mdl 576] Promotion} 51. h5 {Weighted Error Value: White=0.77/Black=0.15 (very precise)} (51. Bc1 Ra8) 0-1

[Event "Lliga Catalana DH 2023"]
[Site "Catalonia"]
[Date "2023.01.21"]
[Round "1.8"]
[White "Ruiz Lupon, Neri"]
[Black "Lambert Pont, Michael"]
[Result "0-1"]
[ECO "B35"]
[WhiteElo "1922"]
[BlackElo "2043"]
[Annotator "TA"]
[PlyCount "90"]
[EventDate "2023.01.24"]
[EventType "team-tourn"]
[EventCountry "ESP"]
[SourceTitle "playchess.com"]
[Source "ChessBase"]
[SourceQuality "1"]
[TimeControl "40/5400+30:1800+30"]

{[%evp 14,90,22,38,32,15,23,22,23,23,27,0,0,0,0,-10,-5,-14,-8,-94,-13,-18,-17,-19,-18,-20,-20,-28,0,0,21,0,0,-1,0,0,128,0,0,-62,-60,-62,-16,-37,14,-113,-33,-19,0,-4,-4,-16,0,-91,-14,-24,-37,-251,-254,-228,-227,-325,-322,-290,-136,-247,0,-124,-126,-204,-185,-381,-374,-390,-276,-302,-130,-528,-95]} 1. e4 {[%emt 0:00:04]} c5 {[%emt 0:00:06]} 2. Nf3 {[%emt 0:00:05]} Nc6 {[%emt 0:00:05]} 3. d4 {[%emt 0:00:05]} cxd4 {[%emt 0:00:05]} 4. Nxd4 {[%emt 0:00:06]} g6 {[%emt 0:00:15]} 5. Nc3 {[%emt 0:00:07]} Bg7 {[%emt 0:00:04]} 6. Be3 {[%emt 0:00:07]} Nf6 {[%emt 0:00:04]} 7. Bc4 {[%emt 0:02:49]} O-O {[%emt 0:00:31]} 8. Bb3 {[%emt 0:00:08]} Re8 {[%emt 0:00:13] B35: Sicilian: Accelerated Dragon with 5 Nc3: main line.} 9. f3 {[%emt 0:05:12]} d5 {[%emt 0:00:13]} 10. exd5 {[%emt 0:01:03]} Nb4 {[%emt 0:00:01] The position is equal.} 11. Nde2 {[%emt 0:04:18]} e6 {[%emt 0:00:10][%cal Rf6d5]} 12. O-O {[%emt 0:02:58]} Nbxd5 {[%emt 0:15:51] [#]} 13. Bf2 $146 {[%emt 0:08:35]} ({Predecessor:} 13. Nxd5 Nxd5 14. Bd4 Bh6 15. Bxd5 Qxd5 16. Nc3 Qc6 17. Qe2 e5 18. Be3 Bg7 19. Rad1 {1-0 Tasev,D (2188)-Samunenkov,I (2433) Titled Tuesday intern op 21st Jun Early blitz 2022 (6)}) 13... b6 {[%emt 0:05:45]} 14. Re1 {[%emt 0:03:05][%cal Bf1e1,Be1d1,Bd1d3][%mdl 32]} Bb7 {[%emt 0:01:08]} 15. a4 {[%emt 0:03:16]} Qc7 {[%emt 0:20:56]} 16. Qc1 {[%emt 0:10:40]} (16. a5 $11) 16... a6 {[%emt 0:07:01]} (16... Nxc3 $1 $17 17. Nxc3 Ng4) 17. Rd1 {[%emt 0:05:29]} Rac8 {[%emt 0:08:20]} 18. Qg5 {[%emt 0:16:03]} h5 {[%emt 0:16:17]} 19. Qg3 {[%emt 0:02:18]} (19. Bd4 {is more complex.} Red8 20. Be5 Qe7 21. Bxd5 Nxd5 22. Qxe7 Nxe7 23. Bxg7 Kxg7 24. Rxd8 Rxd8 25. Rd1) 19... Qxg3 {[%emt 0:13:37]} 20. Bxg3 {[%emt 0:00:16]} Bh6 {[%emt 0:01:13]} (20... Ne3 $5 {[%cal Re3d1]} 21. Rd2 Nfd5 $11) 21. Bf2 {[%emt 0:05:01]} Be3 {[%emt 0:03:36]} 22. Rd3 {[%emt 0:06:39]} Bc5 {[%emt 0:01:17]} 23. Rad1 {[%emt 0:05:04]} Nb4 {[%emt 0:01:37]} 24. R3d2 {[%emt 0:00:14]} Nfd5 {[%emt 0:00:52]} (24... Kg7 $11 {remains equal.}) 25. Bxc5 {[%emt 0:02:46]} (25. Ne4 $1 $16) 25... bxc5 $11 {[%emt 0:00:51][%cal Bb6c5,Bc5c4][%mdl 32]} 26. Kf2 {[%emt 0:08:22]} (26. Ne4 $11 c4 27. Bxc4 (27. c3 cxb3 28. cxb4 Re7 $11)) 26... c4 $15 {[%emt 0:00:23]} 27. Ba2 {[%emt 0:00:19]} Red8 {[%emt 0:01:28] Black is much more active.} (27... Rc7 $15) 28. Bb1 {[%emt 0:01:09]} f5 {[%emt 0:01:00]} ({Better is} 28... Kg7 $15) 29. Nd4 {[%emt 0:05:32]} (29. Nxd5 $11 Nxd5 30. Ba2) 29... Kf7 {[%emt 0:00:29]} (29... Nxc3 $1 $17 30. bxc3 Nd5 31. Nxe6 Re8) 30. Nxd5 {[%emt 0:01:21]} Rxd5 {[%emt 0:00:22]} 31. c3 {[%emt 0:00:49]} Nc6 {[%emt 0:00:12]} 32. Ba2 {[%emt 0:00:29]} Ne5 {[%emt 0:00:32]} (32... Nxd4 {simplifies} 33. Rxd4 Rxd4 34. Rxd4 Bd5) 33. Ke3 {[%emt 0:01:19]} (33. b3 $11) 33... Rcd8 {[%emt 0:01:00]} (33... Ra5 $17) 34. h3 {[%emt 0:00:27] Black must now prevent f4.} (34. b3 $5) 34... g5 {[%emt 0:00:15]} 35. f4 $2 {[%emt 0:00:29]} (35. b3 $15) 35... gxf4+ $19 {[%emt 0:00:38]} 36. Kxf4 {[%emt 0:00:13] [#]} Kf6 $1 {[%emt 0:00:48] And now ...Rg8 would win.} 37. Ke3 {[%emt 0:00:39]} (37. Nf3 $142 Rxd2 38. Rxd2 Rxd2 39. Nxd2 Nd3+ 40. Kg3) 37... Rg8 {[%emt 0:00:49]} 38. Kf2 {[%emt 0:01:07]} Nd3+ {[%emt 0:00:34]} (38... Rd7 $19 {has better winning chances.} 39. Rg1 Rdg7) 39. Kf1 {[%emt 0:00:36] [#]} (39. Kg1 $17 Rc5 40. Rf1) 39... Ne5 $2 {[%emt 0:00:29]} ({Black should try} 39... Nf4 $1 $19 {aiming for ...Re5.} 40. Bxc4 Rc5) 40. Re1 {[%emt 0:00:00]} (40. Kf2 $1 $11) 40... Rd6 $17 {[%emt 0:00:00]} 41. Rde2 {[%emt 0:30:43]} (41. Re3 $17) 41... Be4 $19 {[%emt 0:00:17] ...Bd3 would be deadly. White is weak on the light squares} 42. Bb1 {[%emt 0:00:50]} (42. Rd2 {keeps fighting.}) 42... Nd3 {[%emt 0:31:21]} 43. Rd1 {[%emt 0:00:13]} Rd7 {[%emt 0:01:57] ...e5 is the strong threat.} 44. Ba2 {[%emt 0:00:06]} Ne5 (44... Nf4 $19 45. Rxe4 fxe4) 45. b3 $2 {[%emt 0:00:06][%mdl 8192]} (45. Bb1 $17 Nd3 46. Nf3) 45... Bd5 $2 {Weighted Error Value: White=0.62/Black=0.38} (45... Bd3 $19 {and Black stays clearly on top.} 46. Rde1 Rdg7) 0-1

[Event "Lliga Catalana DH 2023"]
[Site "Catalonia"]
[Date "2023.01.21"]
[Round "1.9"]
[White "Minguez Rodriguez, Raul"]
[Black "Dominguez Laguna, Eduard"]
[Result "1/2-1/2"]
[ECO "B15"]
[WhiteElo "2196"]
[BlackElo "1959"]
[Annotator "TA"]
[PlyCount "49"]
[EventDate "2023.01.24"]
[EventType "team-tourn"]
[EventCountry "ESP"]
[SourceTitle "playchess.com"]
[Source "ChessBase"]
[SourceQuality "1"]
[TimeControl "40/5400+30:1800+30"]

{[%evp 14,49,19,17,37,19,31,39,32,31,52,38,28,42,56,50,44,59,52,22,30,0,0,0,0,0,0,0,0,0,0,0,16,6,14,0,0,-15]} 1. e4 c6 2. d4 d5 3. Nc3 dxe4 4. Nxe4 Nf6 5. Nxf6+ exf6 6. c3 Bd6 7. Bd3 O-O 8. Qc2 {Active counter play!} Re8+ {B15: Caro-Kann: 3 Nc3: 3...g6 and 3...dxe4 4 Nxe4 Nf6 5 Nxf6+ exf6.} 9. Ne2 (9. Be3 $5 {[%cal Rd3h7]}) 9... h5 10. O-O h4 {White is slightly better.} 11. h3 Nd7 12. Be3 Nf8 13. Rad1 Be6 14. Rfe1 Qc7 15. c4 Rad8 {[%cal Of8g6]} 16. Nc3 (16. c5 {keeps more tension.} Bh2+ 17. Kh1 g5 18. Rf1) 16... Qc8 17. f4 f5 {[#] The position is equal.} 18. d5 $146 ({Predecessor:} 18. Qf2 Ng6 19. d5 cxd5 20. cxd5 Bd7 21. Nb5 Bxb5 22. Bxb5 Rxe3 23. Rxe3 Bc5 24. Rc1 Bxe3 25. Qxe3 {½-½ Nataraj,N (1888)-Gourlay,I (2342) BCF-chT1 S4 (4NCL) online 2021 (4.162)}) 18... cxd5 19. cxd5 ({But not} 19. Nxd5 Bxd5 20. cxd5 Rxe3 21. Rxe3 Bc5 $15) 19... Bd7 {[%cal Oe8e3]} 20. Bxa7 Rxe1+ 21. Rxe1 Bxf4 22. Bb6 Re8 23. Rxe8 Qxe8 24. Qe2 {Prevents Be3+.} (24. Bxf5 $2 Qe1#) 24... Qb8 25. Bd4 {Weighted Error Value: White=0.08 (flawless) /Black=0.03 (flawless)} 1/2-1/2